fUSD/lending_fUSD_20250226
["ID","MTS","AMOUNT","RATE_DAILY","PERIOD"]
[354543089,1740563453259,-1147.36,0.00041095,14]
[354543090,1740563453268,-2837.46,0.00041095,14]
[354543091,1740563453278,-1683.39,0.00041095,14]
[354543092,1740563453287,-1366.49,0.00041095,14]
[354543093,1740563453306,-500.0,0.00041095,14]
[354543094,1740563453321,-500.0,0.00041095,14]
[354543095,1740563453333,-500.0,0.00041095,14]
[354543096,1740563453348,-317.21733538,0.00041095,14]
[354543097,1740563453364,-732.47,0.00041095,14]
[354543098,1740563453374,-500.0,0.00041095,14]
[354543099,1740563453383,-500.0,0.00041095,14]
[354543100,1740563453392,-3348.09,0.00041095,14]
[354543101,1740563453401,-500.0,0.00041095,14]
[354543102,1740563453411,-500.49797959,0.00041095,14]
[354543103,1740563453423,-1450.2,0.00041095,14]
[354543104,1740563453432,-500.0,0.00041095,14]
[354543105,1740563453441,-500.0,0.00041095,14]
[354543106,1740563453451,-500.0,0.00041095,14]
[354543107,1740563453460,-757.92,0.00041095,14]
[354543108,1740563453469,-500.0,0.00041095,14]
[354543109,1740563453478,-500.0,0.00041095,14]
[354543110,1740563453487,-1388.4,0.00041095,14]
[354543111,1740563453497,-500.563434,0.00041095,14]
[354543112,1740563453506,-500.0,0.00041095,14]
[354543113,1740563453515,-868.96,0.00041095,14]
[354543114,1740563453525,-500.0,0.00041095,14]
[354543115,1740563453534,-868.96,0.00041095,14]
[354543116,1740563453543,-868.96,0.00041095,14]
[354543117,1740563453553,-705.34,0.00041095,14]
[354543118,1740563453562,-868.96,0.00041095,14]
[354543119,1740563453571,-500.0,0.00041095,14]
[354543120,1740563453580,-1744.05,0.00041095,14]
[354543121,1740563453590,-1352.97,0.00041095,14]
[354543122,1740563453599,-500.0,0.00041095,14]
[354543123,1740563453609,-500.0,0.00041095,14]
[354543124,1740563453618,-4288.45,0.00041095,14]
[354543125,1740563453628,-1038.47,0.00041095,14]
[354543126,1740563453637,-5998.39,0.00041095,14]
[354543127,1740563453646,-500.0,0.00041095,14]
[354543128,1740563453656,-500.0,0.00041095,14]
[354543129,1740563453665,-500.0,0.00041095,14]
[354543130,1740563453675,-1876.79,0.00041095,14]
[354543131,1740563453684,-878.99,0.00041095,14]
[354543132,1740563453693,-500.0,0.00041095,14]
[354543133,1740563453703,-1598.67,0.00041095,14]
[354543134,1740563453713,-500.0,0.00041095,14]
[354543135,1740563453722,-500.0,0.00041095,14]
[354543136,1740563453732,-500.0,0.00041095,14]
[354543137,1740563453742,-500.0,0.00041095,14]
[354543138,1740563453751,-500.0,0.00041095,14]
[354543139,1740563453761,-500.0,0.00041095,14]
[354543140,1740563453770,-2309.35,0.00041095,14]
[354543141,1740563453780,-5498.69,0.00041095,14]
[354543142,1740563453789,-1974.07,0.00041095,14]
[354543143,1740563453798,-500.0,0.00041095,14]
[354543144,1740563453808,-500.0,0.00041095,14]
[354543145,1740563453817,-500.0,0.00041095,14]
[354543146,1740563453827,-500.0,0.00041095,14]
[354543147,1740563453838,-500.0,0.00041095,14]
[354543148,1740563453849,-5342.74,0.00041095,14]
[354543149,1740563453863,-500.0,0.00041095,14]
[354543150,1740563453873,-2151.99,0.00041095,14]
[354543151,1740563453883,-3037.31,0.00041095,14]
[354543152,1740563453894,-500.0,0.00041095,14]
[354543153,1740563453904,-1956.33,0.00041095,14]
[354543154,1740563453914,-500.0,0.00041095,14]
[354543155,1740563453925,-500.0,0.00041095,14]
[354543156,1740563453938,-2233.4,0.00041095,14]
[354543157,1740563453948,-500.0,0.00041095,14]
[354543158,1740563453958,-500.0,0.00041095,14]
[354543159,1740563453967,-1602.3,0.00041095,14]
[354543160,1740563453977,-500.0,0.00041095,14]
[354543161,1740563453990,-500.0,0.00041095,14]
[354543162,1740563454001,-1952.04,0.00041095,14]
[354543163,1740563454011,-500.0,0.00041095,14]
[354543164,1740563454024,-848.97,0.00041095,14]
[354543165,1740563454034,-1798.62,0.00041095,14]
[354543166,1740563454042,-500.0,0.00041095,14]
[354543167,1740563454052,-500.0,0.00041095,14]
[354543168,1740563454062,-200.0,0.00041095,7]
[354543169,1740563454071,-628.47594087,0.00041095,14]
[354543170,1740563454080,-500.0,0.00041095,14]
[354543171,1740563454089,-1630.34,0.00041095,14]
[354543172,1740563454099,-500.0,0.00041095,14]
[354543173,1740563454108,-500.0,0.00041095,14]
[354543174,1740563454117,-500.0,0.00041095,14]
[354543175,1740563454125,-500.0,0.00041095,14]
[354543176,1740563454135,-2007.34978371,0.00041095,30]
[354543177,1740563454144,-5787.16,0.00041095,14]
[354543178,1740563454153,-500.0,0.00041095,14]
[354543179,1740563454163,-643.87894363,0.00041095,14]
[354543180,1740563454173,-500.0,0.00041095,14]
[354543181,1740563454182,-500.0,0.00041095,14]
[354543182,1740563454191,-4111.56,0.00041095,14]
[354543183,1740563454200,-1668.86,0.00041095,14]
[354543184,1740563454209,-3331.69,0.00041095,14]
[354543185,1740563454219,-500.0,0.00041095,14]
[354543186,1740563454228,-500.0,0.00041095,14]
[354543187,1740563454237,-3106.82,0.00041095,14]
[354543188,1740563454246,-5403.68,0.00041095,14]
[354543189,1740563454255,-500.0,0.00041095,14]
[354543190,1740563454264,-1026.98,0.00041095,14]
[354543191,1740563454273,-900.08,0.00041095,14]
[354543192,1740563454283,-705.85,0.00041095,14]
[354543193,1740563454292,-500.0,0.00041095,14]
[354543194,1740563454302,-500.0,0.00041095,14]
[354543195,1740563454311,-500.0,0.00041095,14]
[354543196,1740563454320,-500.0,0.00041095,14]
[354543197,1740563454329,-500.0,0.00041095,14]
[354543198,1740563454338,-2330.22,0.00041095,14]
[354543199,1740563454349,-935.98,0.00041095,14]
[354543200,1740563454359,-500.0,0.00041095,14]
[354543201,1740563454367,-500.0,0.00041095,14]
[354543202,1740563454377,-500.0,0.00041095,14]
[354543203,1740563454387,-500.0,0.00041095,14]
[354543204,1740563454396,-500.0,0.00041095,14]
[354543205,1740563454405,-500.0,0.00041095,14]
[354543206,1740563454414,-2000.07,0.00041095,14]
[354543207,1740563454424,-2989.39,0.00041095,14]
[354543208,1740563454433,-500.0,0.00041095,14]
[354543209,1740563454442,-500.0,0.00041095,14]
[354543210,1740563454451,-500.0,0.00041095,14]
[354543211,1740563454460,-500.0,0.00041095,14]
[354543212,1740563454469,-500.0,0.00041095,14]
[354543213,1740563454478,-505.93490738,0.00041095,14]
[354543214,1740563454487,-626.61,0.00041095,14]
[354543215,1740563454497,-511.78,0.00041095,14]
[354543216,1740563454506,-616.66357923,0.00041095,14]
[354543217,1740563454515,-1723.64,0.00041095,14]
[354543218,1740563454524,-2722.37,0.00041095,14]
[354543219,1740563454534,-739.39,0.00041095,14]
[354543220,1740563454543,-500.0,0.00041095,14]
[354543221,1740563454552,-500.0,0.00041095,14]
[354543222,1740563454561,-4190.09,0.00041095,14]
[354543223,1740563454570,-857.23,0.00041095,14]
[354543224,1740563454579,-500.0,0.00041095,14]
[354543225,1740563454588,-500.0,0.00041095,14]
[354543226,1740563454597,-500.0,0.00041095,14]
[354543227,1740563454607,-613.79,0.00041095,14]
[354543228,1740563454618,-3944.72,0.00041095,14]
[354543229,1740563454627,-500.0,0.00041095,14]
[354543230,1740563454636,-942.99,0.00041095,14]
[354543231,1740563454646,-2571.17,0.00041095,14]
[354543232,1740563454655,-500.0,0.00041095,14]
[354543233,1740563454664,-4098.59,0.00041095,14]
[354543234,1740563454673,-2087.34,0.00041095,14]
[354543235,1740563454683,-3380.82,0.00041095,14]
[354543236,1740563454692,-500.0,0.00041095,14]
[354543237,1740563454701,-508.7314166,0.00041095,14]
[354543238,1740563454710,-500.0,0.00041095,14]
[354543239,1740563454719,-1438.72,0.00041095,14]
[354543240,1740563454729,-1941.25,0.00041095,14]
[354543241,1740563454738,-539.99,0.00041095,14]
[354543242,1740563454747,-534.36,0.00041095,14]
[354543243,1740563454757,-500.0,0.00041095,14]
[354543244,1740563454766,-500.0,0.00041095,14]
[354543245,1740563454775,-500.0,0.00041095,14]
[354543246,1740563454784,-500.0,0.00041095,14]
[354543247,1740563454793,-500.0,0.00041095,14]
[354543248,1740563454803,-500.0,0.00041095,14]
[354543249,1740563454812,-1921.3,0.00041095,14]
[354543250,1740563454821,-930.9,0.00041095,14]
[354543251,1740563454830,-6675.08,0.00041095,14]
[354543252,1740563454839,-500.0,0.00041095,14]
[354543253,1740563454849,-500.0,0.00041095,14]
[354543254,1740563454863,-500.0,0.00041095,14]
[354543255,1740563454872,-5307.74,0.00041095,14]
[354543256,1740563454881,-1851.65,0.00041095,14]
[354543257,1740563454891,-1543.07,0.00041095,7]
[354543258,1740563454900,-3221.96,0.00041095,14]
[354543259,1740563454909,-3244.05,0.00041095,14]
[354543260,1740563454918,-500.0,0.00041095,14]
[354543261,1740563454929,-1652.95,0.00041095,14]
[354543262,1740563454938,-1004.4,0.00041095,14]
[354543263,1740563454947,-500.0,0.00041095,14]
[354543264,1740563454956,-500.0,0.00041095,14]
[354543265,1740563454965,-2176.28,0.00041095,14]
[354543266,1740563454974,-2508.88,0.00041095,14]
[354543267,1740563454984,-500.0,0.00041095,14]
[354543268,1740563454993,-727.55,0.00041095,14]
[354543269,1740563455068,-500.0,0.00041095,14]
[354543270,1740563455077,-500.0,0.00041095,14]
[354543271,1740563455086,-1307.77,0.00041095,14]
[354543272,1740563455095,-500.0,0.00041095,14]
[354543273,1740563455104,-500.0,0.00041095,14]
[354543274,1740563455113,-627.74,0.00041095,14]
[354543275,1740563455123,-5031.97,0.00041095,14]
[354543276,1740563455132,-1986.08,0.00041095,14]
[354543277,1740563455142,-500.0,0.00041095,14]
[354543278,1740563455151,-500.0,0.00041095,14]
[354543279,1740563455160,-6224.76,0.00041095,14]
[354543280,1740563455169,-701.12,0.00041095,14]
[354543281,1740563455179,-500.0,0.00041095,14]
[354543282,1740563455189,-300.0,0.00041168,30]
[354543283,1740563455198,-60439.11155894,0.00041169,30]
[354543284,1740563455207,-378.9,0.00041265,2]
[354543285,1740563455216,-720.34,0.00041343,9]
[354543286,1740563455225,-439.56,0.00041356,30]
[354543287,1740563455235,-344.07,0.00041356,30]
[354543288,1740563455244,-439.56,0.00041356,30]
[354543289,1740563455254,-344.07,0.00041356,30]
[354543290,1740563455263,-344.07,0.00041356,30]
[354543291,1740563455272,-504.67970426,0.00041358,14]
[354543292,1740563455281,-500.0,0.00041358,14]
[354543293,1740563455290,-300.0,0.00041367,30]
[354543294,1740563455299,-303.50466767,0.00041368,30]
[354543295,1740563455308,-500.78,0.00041368,14]
[354543296,1740563455317,-500.78,0.00041368,14]
[354543297,1740563455326,-500.78,0.00041368,14]
[354543298,1740563455335,-500.78,0.00041368,14]
[354543299,1740563455343,-500.78,0.00041368,14]
[354543300,1740563455353,-500.78,0.00041368,14]
[354543301,1740563455363,-500.78,0.00041368,14]
[354543302,1740563455372,-500.78,0.00041368,14]
[354543303,1740563455381,-500.78,0.00041368,14]
[354543304,1740563455390,-500.78,0.00041368,14]
[354543305,1740563455400,-500.78,0.00041368,14]
[354543306,1740563455409,-500.0,0.00041368,14]
[354543307,1740563455419,-500.0,0.00041368,14]
[354543308,1740563455429,-500.0,0.00041368,14]
[354543309,1740563455438,-1318.28,0.00041368,14]
[354543310,1740563455448,-1318.28,0.00041368,14]
[354543311,1740563455457,-1318.28,0.00041368,14]
[354543312,1740563455466,-500.0,0.00041368,14]
[354543313,1740563455475,-500.0,0.00041368,14]
[354543314,1740563455484,-500.0,0.00041368,14]
[354543315,1740563455493,-500.0,0.00041368,14]
[354543316,1740563455503,-556.01,0.00041368,14]
[354543317,1740563455511,-556.01,0.00041368,14]
[354543318,1740563455520,-556.01,0.00041368,14]
[354543319,1740563455529,-556.01,0.00041368,14]
[354543320,1740563455538,-556.01,0.00041368,14]
[354543321,1740563455547,-556.01,0.00041368,14]
[354543322,1740563455556,-556.01,0.00041368,14]
[354543323,1740563455565,-556.01,0.00041368,14]
[354543324,1740563455574,-556.01,0.00041368,14]
[354543325,1740563455584,-556.01,0.00041368,14]
[354543326,1740563455593,-556.01,0.00041368,14]
[354543327,1740563455602,-868.96,0.00041368,14]
[354543328,1740563455611,-868.96,0.00041368,14]
[354543329,1740563455620,-868.96,0.00041368,14]
[354543330,1740563455629,-150.0,0.00041368,30]
[354543331,1740563455638,-151.0,0.00041368,14]
[354543332,1740563455647,-151.0,0.00041368,14]
[354543333,1740563455657,-500.0,0.00041369,14]
[354543334,1740563455667,-500.0,0.00041369,14]
[354543335,1740563455677,-500.0,0.00041369,14]
[354543336,1740563455686,-500.0,0.00041369,14]
[354543337,1740563455695,-500.0,0.00041369,14]
[354543338,1740563455704,-278.79682361,0.00041369,14]
[354543339,1740563455713,-500.0,0.00041369,14]
[354543340,1740563455722,-500.0,0.00041369,14]
[354543341,1740563455731,-500.0,0.00041369,14]
[354543342,1740563455740,-500.0,0.00041369,14]
[354543343,1740563455749,-500.0,0.00041369,14]
[354543344,1740563455759,-500.0,0.00041369,14]
[354543345,1740563455768,-500.0,0.00041369,14]
[354543346,1740563455777,-500.0,0.00041369,14]
[354543347,1740563455786,-607.76663278,0.00041369,14]
[354543348,1740563455795,-500.0,0.00041369,14]
[354543349,1740563455805,-290.00964407,0.00041369,14]
[354543350,1740563455814,-500.0,0.00041369,14]
[354543351,1740563455823,-500.0,0.00041369,14]
[354543352,1740563455832,-500.0,0.00041369,14]
[354543353,1740563455841,-502.44447512,0.00041369,14]
[354543354,1740563455853,-500.0,0.00041369,14]
[354543355,1740563455863,-500.0,0.00041369,14]
[354543356,1740563455872,-500.0,0.00041369,14]
[354543357,1740563455881,-500.0,0.00041369,14]
[354543358,1740563455890,-500.0,0.00041369,14]
[354543359,1740563455899,-500.0,0.00041369,14]
[354543360,1740563455908,-500.0,0.00041369,14]
[354543361,1740563455918,-500.0,0.00041369,14]
[354543362,1740563455928,-1027.58,0.00041369,14]
[354543363,1740563455938,-354.36962548,0.00041369,14]
[354543364,1740563455947,-500.0,0.00041369,14]
[354543365,1740563455956,-500.0,0.00041369,14]
[354543366,1740563455966,-838.75,0.00041369,14]
[354543367,1740563455974,-500.0,0.00041369,14]
[354543368,1740563455983,-500.0,0.00041369,14]
[354543369,1740563455992,-500.0,0.00041369,14]
[354543370,1740563456001,-500.0,0.00041369,14]
[354543371,1740563456010,-500.0,0.00041369,14]
[354543372,1740563456019,-690.37,0.00041369,14]
[354543373,1740563456028,-500.0,0.00041369,14]
[354543374,1740563456037,-500.0,0.00041369,14]
[354543375,1740563456047,-710.33,0.00041369,14]
[354543376,1740563456056,-500.0,0.00041369,14]
[354543377,1740563456065,-500.0,0.00041369,14]
[354543378,1740563456075,-500.0,0.00041369,14]
[354543379,1740563456084,-500.0,0.00041369,14]
[354543380,1740563456093,-500.0,0.00041369,14]
[354543381,1740563456102,-500.0,0.00041369,14]
[354543382,1740563456111,-500.0,0.00041369,14]
[354543383,1740563456120,-915.95,0.00041369,14]
[354543384,1740563456129,-500.0,0.00041369,14]
[354543385,1740563456138,-500.0,0.00041369,14]
[354543386,1740563456148,-213.69906808,0.00041369,120]
[354543387,1740563456157,-500.0,0.00041369,14]
[354543388,1740563456166,-595.32,0.00041369,14]
[354543389,1740563456176,-500.0,0.00041369,14]
[354543390,1740563456185,-500.0,0.00041369,14]
[354543391,1740563456194,-1180.01,0.00041369,14]
[354543392,1740563456203,-1540.69,0.00041369,14]
[354543393,1740563456212,-500.0,0.00041369,14]
[354543394,1740563456221,-500.0,0.00041369,14]
[354543395,1740563456230,-500.0,0.00041369,14]
[354543396,1740563456239,-500.0,0.00041369,14]
[354543397,1740563456248,-500.0,0.00041369,14]
[354543398,1740563456257,-500.0,0.00041369,14]
[354543399,1740563456267,-1722.6,0.00041369,14]
[354543400,1740563456276,-500.0,0.00041369,14]
[354543401,1740563456284,-334.16541652,0.00041369,14]
[354543402,1740563456293,-500.0,0.00041369,14]
[354543403,1740563456303,-500.0,0.00041369,14]
[354543404,1740563456312,-500.0,0.00041369,14]
[354543405,1740563456321,-500.0,0.00041369,14]
[354543406,1740563456331,-500.0,0.00041369,14]
[354543407,1740563456341,-500.0,0.00041369,14]
[354543408,1740563456350,-500.0,0.00041369,14]
[354543409,1740563456359,-579.15993142,0.00041369,14]
[354543410,1740563456368,-500.0,0.00041369,14]
[354543411,1740563456378,-500.0,0.00041369,14]
[354543412,1740563456388,-500.0,0.00041369,14]
[354543413,1740563456397,-500.0,0.00041369,14]
[354543414,1740563456406,-983.93,0.00041369,14]
[354543415,1740563456415,-500.0,0.00041369,14]
[354543416,1740563456424,-500.0,0.00041369,14]
[354543417,1740563456433,-805.01,0.00041369,14]
[354543418,1740563456443,-500.0,0.00041369,14]
[354543419,1740563456452,-500.0,0.00041369,14]
[354543420,1740563456461,-500.0,0.00041369,14]
[354543421,1740563456470,-678.67,0.00041369,14]
[354543422,1740563456479,-500.0,0.00041369,14]
[354543423,1740563456487,-767.49,0.00041369,14]
[354543424,1740563456496,-500.0,0.00041369,14]
[354543425,1740563456505,-500.0,0.00041369,14]
[354543426,1740563456514,-500.0,0.00041369,14]
[354543427,1740563456523,-643.49,0.00041369,14]
[354543428,1740563456532,-500.0,0.00041369,14]
[354543429,1740563456541,-500.0,0.00041369,14]
[354543430,1740563456550,-500.0,0.00041369,14]
[354543431,1740563456559,-500.0,0.00041369,14]
[354543432,1740563456569,-500.0,0.00041369,14]
[354543433,1740563456578,-500.0,0.00041369,14]
[354543434,1740563456587,-500.0,0.00041369,14]
[354543435,1740563456596,-500.0,0.00041369,14]
[354543436,1740563456605,-500.0,0.00041369,14]
[354543437,1740563456614,-500.0,0.00041369,14]
[354543438,1740563456623,-532.48266092,0.00041369,14]
[354543439,1740563456632,-500.0,0.00041369,14]
[354543440,1740563456640,-1139.64,0.00041369,14]
[354543441,1740563456650,-500.0,0.00041369,14]
[354543442,1740563456659,-500.0,0.00041369,14]
[354543443,1740563456668,-500.0,0.00041369,14]
[354543444,1740563456678,-500.0,0.00041369,14]
[354543445,1740563456687,-547.89,0.00041369,14]
[354543446,1740563456696,-524.64,0.00041369,14]
[354543447,1740563456705,-1095.28,0.00041369,14]
[354543448,1740563456715,-500.0,0.00041369,14]
[354543449,1740563456724,-500.0,0.00041369,14]
[354543450,1740563456733,-500.0,0.00041369,14]
[354543451,1740563456743,-873.37,0.00041369,14]
[354543452,1740563456751,-500.0,0.00041369,14]
[354543453,1740563456761,-500.0,0.00041369,14]
[354543454,1740563456770,-871.73,0.00041369,14]
[354543455,1740563456780,-858.6,0.00041369,14]
[354543456,1740563456789,-500.0,0.00041369,14]
[354543457,1740563456798,-500.0,0.00041369,14]
[354543458,1740563456807,-500.0,0.00041369,14]
[354543459,1740563456816,-500.0,0.00041369,14]
[354543460,1740563456826,-894.67,0.00041369,14]
[354543461,1740563456835,-600.92541427,0.00041369,14]
[354543462,1740563456844,-500.0,0.00041369,14]
[354543463,1740563456857,-500.0,0.00041369,14]
[354543464,1740563456866,-500.0,0.00041369,14]
[354543465,1740563456876,-502.19118187,0.00041369,14]
[354543466,1740563456885,-898.78,0.00041369,14]
[354543467,1740563456894,-500.0,0.00041369,14]
[354543468,1740563456903,-500.0,0.00041369,14]
[354543469,1740563456912,-500.0,0.00041369,14]
[354543470,1740563456921,-500.0,0.00041369,14]
[354543471,1740563456933,-500.0,0.00041369,14]
[354543472,1740563456942,-500.0,0.00041369,14]
[354543473,1740563456951,-604.42,0.00041369,14]
[354543474,1740563456961,-962.311662,0.00041369,14]
[354543475,1740563456970,-1115.31,0.00041369,14]
[354543476,1740563456979,-500.0,0.00041369,14]
[354543477,1740563456988,-500.0,0.00041369,14]
[354543478,1740563456997,-500.0,0.00041369,14]
[354543479,1740563457006,-500.0,0.00041369,14]
[354543480,1740563457015,-996.82,0.00041369,14]
[354543481,1740563457025,-2362.047592,0.00041369,14]
[354543482,1740563457034,-868.72,0.00041369,14]
[354543483,1740563457043,-500.0,0.00041369,14]
[354543484,1740563457052,-973.97,0.00041369,14]
[354543485,1740563457060,-500.0,0.00041369,14]
[354543486,1740563457070,-500.0,0.00041369,14]
[354543487,1740563457079,-500.0,0.00041369,14]
[354543488,1740563457088,-500.0,0.00041369,14]
[354543489,1740563457097,-500.0,0.00041369,14]
[354543490,1740563457106,-1652.76,0.00041369,14]
[354543491,1740563457115,-500.0,0.00041369,14]
[354543492,1740563457124,-1674.45,0.00041369,14]
[354543493,1740563457132,-500.0,0.00041369,14]
[354543494,1740563457141,-500.0,0.00041369,14]
[354543495,1740563457151,-879.97,0.00041369,14]
[354543496,1740563457160,-501.7670183,0.00041369,14]
[354543497,1740563457169,-500.0,0.00041369,14]
[354543498,1740563457179,-500.0,0.00041369,14]
[354543499,1740563457189,-613.72,0.00041369,14]
[354543500,1740563457200,-523.29,0.00041369,14]
[354543501,1740563457209,-500.0,0.00041369,14]
[354543502,1740563457219,-1378.86,0.00041369,14]
[354543503,1740563457228,-500.0,0.00041369,14]
[354543504,1740563457237,-500.0,0.00041369,14]
[354543505,1740563457246,-500.0,0.00041369,14]
[354543506,1740563457256,-500.0,0.00041369,14]
[354543507,1740563457265,-500.0,0.00041369,14]
[354543508,1740563457274,-561.72,0.00041369,14]
[354543509,1740563457283,-1960.28,0.00041369,14]
[354543510,1740563457292,-500.0,0.00041369,14]
[354543511,1740563457302,-505.44,0.00041369,14]
[354543512,1740563457311,-525.3,0.00041369,14]
[354543513,1740563457320,-680.27,0.00041369,14]
[354543514,1740563457328,-500.0,0.00041369,14]
[354543515,1740563457338,-500.0,0.00041369,14]
[354543516,1740563457347,-500.0,0.00041369,14]
[354543517,1740563457356,-500.0,0.00041369,14]
[354543518,1740563457365,-1758.99,0.00041369,14]
[354543519,1740563457374,-500.0,0.00041369,14]
[354543520,1740563457383,-994.23,0.00041369,14]
[354543521,1740563457392,-1506.23,0.00041369,14]
[354543522,1740563457401,-500.0,0.00041369,14]
[354543523,1740563457411,-1172.8,0.00041369,14]
[354543524,1740563457420,-1000.0,0.00041369,14]
[354543525,1740563457429,-500.0,0.00041369,14]
[354543526,1740563457438,-500.0,0.00041369,30]
[354543527,1740563457447,-500.0,0.00041369,14]
[354543528,1740563457456,-500.0,0.00041369,14]
[354543529,1740563457466,-1753.94,0.00041369,14]
[354543530,1740563457475,-1215.42,0.00041369,14]
[354543531,1740563457484,-500.0,0.00041369,14]
[354543532,1740563457493,-1709.0,0.00041369,14]
[354543533,1740563457502,-1510.96,0.00041369,14]
[354543534,1740563457511,-500.0,0.00041369,14]
[354543535,1740563457520,-2885.69,0.00041369,14]
[354543536,1740563457530,-500.0,0.00041369,14]
[354543537,1740563457539,-500.0,0.00041369,14]
[354543538,1740563457549,-788.66,0.00041369,14]
[354543539,1740563457558,-500.0,0.00041369,14]
[354543540,1740563457567,-500.0,0.00041369,14]
[354543541,1740563457576,-500.0,0.00041369,14]
[354543542,1740563457586,-500.0,0.00041369,14]
[354543543,1740563457594,-500.0,0.00041369,14]
[354543544,1740563457604,-500.0,0.00041369,14]
[354543545,1740563457613,-2827.42,0.00041369,14]
[354543546,1740563457622,-578.83611015,0.00041369,14]
[354543547,1740563457631,-783.29,0.00041369,14]
[354543548,1740563457640,-698.75,0.00041369,14]
[354543549,1740563457649,-1682.36,0.00041369,14]
[354543550,1740563457658,-500.0,0.00041369,14]
[354543551,1740563457667,-500.0,0.00041369,14]
[354543552,1740563457677,-500.0,0.00041369,14]
[354543553,1740563457686,-1658.66,0.00041369,14]
[354543554,1740563457695,-93.04691235,0.00041369,14]
[354543555,1740563457728,-406.95308765,0.00041369,14]
[354543556,1740563457737,-500.0,0.00041369,14]
[354543557,1740563457746,-500.0,0.00041369,14]
[354543558,1740563457755,-369.2503874,0.00041369,14]
[354543559,1740563457774,-915.5596126,0.00041369,14]
[354543560,1740563457783,-1260.27,0.00041369,14]
[354543561,1740563457792,-500.0,0.00041369,14]
[354543562,1740563457801,-1780.13,0.00041369,14]
[354543563,1740563457810,-500.0,0.00041369,14]
[354543564,1740563457820,-500.0,0.00041369,14]
[354543565,1740563457829,-500.0,0.00041369,14]
[354543566,1740563457839,-500.0,0.00041369,14]
[354543567,1740563457849,-500.0,0.00041369,14]
[354543568,1740563457861,-1464.58,0.00041369,14]
[354543569,1740563457871,-2150.37,0.00041369,14]
[354543570,1740563457880,-2609.25,0.00041369,14]
[354543571,1740563457890,-2227.81,0.00041369,14]
[354543572,1740563457899,-500.0,0.00041369,14]
[354543573,1740563457908,-500.0,0.00041369,14]
[354543574,1740563457918,-500.0,0.00041369,14]
[354543575,1740563457928,-504.05653333,0.00041369,14]
[354543576,1740563457939,-500.0,0.00041369,14]
[354543577,1740563457949,-500.0,0.00041369,14]
[354543578,1740563457958,-500.0,0.00041369,14]
[354543579,1740563457967,-1429.02,0.00041369,14]
[354543580,1740563457976,-500.0,0.00041369,14]
[354543581,1740563457985,-500.0,0.00041369,14]
[354543582,1740563457995,-3097.37,0.00041369,14]
[354543583,1740563458004,-833.94,0.00041369,14]
[354543584,1740563458013,-500.0,0.00041369,14]
[354543585,1740563458022,-2375.1,0.00041369,14]
[354543586,1740563458031,-500.0,0.00041369,14]
[354543587,1740563458040,-838.11,0.00041369,14]
[354543588,1740563458049,-139.75086241,0.00041369,14]